[Event "elllobregat Open Chess TnmT- 2nd Edition 2021"]
[Site "Castelldefels, Spain"]
[Date "2021.12.07"]
[Round "8.1"]
[White "Abdusattorov, Nodirbek"]
[Black "Safarli, Eltaj"]
[Result "1-0"]
[TimeControl "90min/40moves + 30min/end + 30sec increment per move starting from move 1"]
[WhiteTitle "GM"]
[BlackTitle "GM"]
[WhiteFideId "14204118"]
[BlackFideId "13402129"]
[WhiteElo "2646"]
[BlackElo "2579"]

1. e4 {[%clk 01:30:58]} c5 {[%clk 01:26:22]} {[%emt 00:04:39]} 2. Nf3 {[%clk
01:31:19]} {[%emt 00:00:08]} Nc6 {[%clk 01:26:47]} {[%emt 00:00:05]} 3. Bb5
{[%clk 01:31:40]} {[%emt 00:00:09]} e6 {[%clk 01:27:11]} {[%emt 00:00:06]} 4.
Nc3 {[%clk 01:30:33]} {[%emt 00:01:37]} Nge7 {[%clk 01:26:50]} {[%emt
00:00:52]} 5. d4 {[%clk 01:29:06]} {[%emt 00:01:57]} cxd4 {[%clk 01:26:39]}
{[%emt 00:00:41]} 6. Nxd4 {[%clk 01:29:28]} {[%emt 00:00:09]} Ng6 {[%clk
01:25:48]} {[%emt 00:01:20]} 7. Be3 {[%clk 01:27:56]} {[%emt 00:02:02]} Be7
{[%clk 01:25:51]} {[%emt 00:00:27]} 8. Qd2 {[%clk 01:26:10]} {[%emt 00:02:16]}
a6 {[%clk 01:22:53]} {[%emt 00:03:27]} 9. Be2 {[%clk 01:25:08]} {[%emt
00:01:32]} Nxd4 {[%clk 01:17:27]} {[%emt 00:05:57]} 10. Qxd4 {[%clk 01:23:07]}
{[%emt 00:02:30]} O-O {[%clk 01:14:00]} {[%emt 00:03:56]} 11. Qb6 {[%emt
00:11:13]} Qxb6 {[%clk 00:50:25]} {[%emt 00:13:07]} 12. Bxb6 {[%clk 01:23:50]}
{[%emt 00:00:02]} Bb4 {[%clk 00:50:04]} {[%emt 00:00:51]} 13. O-O-O {[%clk
01:21:38]} {[%emt 00:02:41]} Bxc3 {[%clk 00:47:44]} {[%emt 00:02:52]} 14. bxc3
{[%clk 01:22:00]} {[%emt 00:00:07]} d5 {[%clk 00:48:10]} {[%emt 00:00:04]} 15.
exd5 {[%clk 01:17:36]} {[%emt 00:04:54]} exd5 {[%clk 00:48:16]} {[%emt
00:00:24]} 16. Bf3 {[%clk 01:16:47]} {[%emt 00:01:18]} Be6 {[%clk 00:47:59]}
{[%emt 00:00:47]} 17. Bxd5 {[%clk 01:12:12]} {[%emt 00:05:06]} Bxd5 {[%clk
00:48:06]} {[%emt 00:00:23]} 18. Rxd5 {[%clk 01:12:35]} {[%emt 00:00:06]} Rac8
{[%clk 00:48:18]} {[%emt 00:00:18]} 19. Rd7 {[%clk 01:12:56]} {[%emt 00:00:09]}
Nf4 {[%clk 00:36:19]} {[%emt 00:12:29]} 20. Rxb7 {[%clk 01:00:05]} {[%emt
00:13:21]} Ne2+ {[%clk 00:36:09]} {[%emt 00:00:39]} 21. Kd2 {[%clk 01:00:16]}
{[%emt 00:00:20]} Nxc3 {[%clk 00:36:09]} {[%emt 00:00:30]} 22. Re1 {[%clk
01:00:13]} {[%emt 00:00:33]} Nxa2 {[%clk 00:32:17]} {[%emt 00:04:22]} 23. Bc7
{[%clk 00:48:30]} {[%emt 00:12:12]} Nb4 {[%clk 00:32:03]} {[%emt 00:00:45]} 24.
c4 {[%clk 00:48:39]} {[%emt 00:00:21]} Nc6 {[%clk 00:31:21]} {[%emt 00:01:11]}
25. Kc3 {[%emt 00:04:56]} a5 {[%clk 00:25:56]} {[%emt 00:02:42]} 26. Rd1 {[%clk
00:41:14]} {[%emt 00:06:42]} Rfe8 {[%clk 00:18:27]} {[%emt 00:07:59]} 27. Rd6
{[%clk 00:41:26]} {[%emt 00:00:18]} Ne5 {[%clk 00:17:53]} {[%emt 00:01:03]} 28.
Rd5 {[%clk 00:31:09]} {[%emt 00:10:48]} Ng4 {[%clk 00:16:57]} {[%emt 00:01:26]}
29. Bg3 {[%clk 00:25:46]} {[%emt 00:05:52]} h5 {[%clk 00:06:11]} {[%emt
00:11:17]} 30. Rxh5 {[%clk 00:20:30]} {[%emt 00:05:46]} Re1 {[%clk 00:03:59]}
{[%emt 00:02:42]} 31. Rc7 {[%clk 00:18:43]} {[%emt 00:02:17]} Rc1+ {[%clk
00:04:11]} {[%emt 00:00:18]} 32. Kd4 {[%clk 00:18:35]} {[%emt 00:00:38]} Rd1+
{[%clk 00:03:12]} {[%emt 00:01:30]} 33. Kc5 {[%clk 00:18:01]} {[%emt 00:01:04]}
Rxc7+ {[%clk 00:01:20]} {[%emt 00:02:22]} 34. Bxc7 {[%clk 00:18:29]} {[%emt
00:00:02]} Nf6 {[%clk 00:01:44]} {[%emt 00:00:06]} 35. Rh3 {[%clk 00:18:18]}
{[%emt 00:00:40]} Rd2 {[%clk 00:00:52]} {[%emt 00:01:23]} 36. Rf3 {[%clk
00:17:20]} {[%emt 00:01:28]} a4 {[%clk 00:01:04]} {[%emt 00:00:19]} 37. Kb4
{[%clk 00:14:38]} {[%emt 00:03:12]} Rc2 {[%emt 00:01:34]} 38. Rf4 {[%clk
00:12:32]} {[%emt 00:01:06]} Nd7 {[%clk 00:00:32]} {[%emt 00:01:27]} 39. Rd4
{[%clk 00:12:23]} {[%emt 00:00:39]} Rb2+ {[%clk 00:00:37]} {[%emt 00:00:26]} 40.
Kxa4 {[%clk 00:41:00]} {[%emt 00:01:52]} Nc5+ {[%clk 00:31:00]} {[%emt
00:00:07]} 41. Ka3 {[%clk 00:41:26]} {[%emt 00:00:04]} Rc2 {[%clk 00:09:19]}
{[%emt 00:22:10]} 42. Bb6 {[%clk 00:40:35]} {[%emt 00:01:21]} Ne6 {[%clk
00:09:37]} {[%emt 00:00:12]} 43. Re4 {[%clk 00:40:47]} {[%emt 00:00:17]} Kf8
{[%clk 00:09:49]} {[%emt 00:00:18]} 44. Be3 {[%clk 00:39:57]} {[%emt 00:01:21]}
Ke8 {[%clk 00:09:35]} {[%emt 00:00:44]} 45. Kb3 {[%clk 00:39:44]} {[%emt
00:00:44]} Re2 {[%clk 00:10:00]} {[%emt 00:00:05]} 46. Re5 {[%clk 00:39:55]}
{[%emt 00:00:18]} Kd7 {[%clk 00:06:25]} {[%emt 00:04:05]} 47. Ra5 {[%clk
00:39:42]} {[%emt 00:00:42]} Kd6 {[%clk 00:06:43]} {[%emt 00:00:12]} 48. h4
{[%clk 00:39:33]} {[%emt 00:00:39]} Re1 {[%clk 00:03:59]} {[%emt 00:03:15]} 49.
h5 {[%clk 00:39:24]} {[%emt 00:00:39]} f6 {[%clk 00:02:59]} {[%emt 00:01:30]}
50. Kc3 {[%clk 00:39:21]} {[%emt 00:00:32]} Rh1 {[%clk 00:02:24]} {[%emt
00:01:05]} 51. Kd3 {[%clk 00:39:11]} {[%emt 00:00:39]} Rh4 {[%clk 00:02:37]}
{[%emt 00:00:17]} 52. g3 {[%clk 00:39:13]} {[%emt 00:00:29]} Rg4 {[%clk
00:02:39]} {[%emt 00:00:28]} 53. Ra6+ {[%clk 00:38:54]} {[%emt 00:00:49]} Ke7
{[%clk 00:03:02]} {[%emt 00:00:07]} 54. Rxe6+ {[%clk 00:38:28]} {[%emt
00:00:56]} Kxe6 {[%clk 00:03:28]} {[%emt 00:00:04]} 55. Bf4 {[%clk 00:38:55]}
{[%emt 00:00:04]} Ke5 {[%emt 00:00:06]} 56. Ke4+ Kd5+ 1-0

[Event "elllobregat Open Chess TnmT- 2nd Edition 2021"]
[Site "Castelldefels, Spain"]
[Date "2021.12.07"]
[Round "8.2"]
[White "Santos Latasa, Jaime"]
[Black "Aditya, Mittal"]
[Result "1/2-1/2"]
[TimeControl "90min/40moves + 30min/end + 30sec increment per move starting from move 1"]
[WhiteTitle "GM"]
[BlackTitle "IM"]
[WhiteFideId "2293307"]
[BlackFideId "35042025"]
[WhiteElo "2633"]
[BlackElo "2459"]

1. e4 {[%clk 01:24:15]} {[%emt 00:01:04]} c5 {[%clk 01:30:48]} {[%emt
00:00:12]} 2. Nf3 {[%clk 01:24:38]} {[%emt 00:00:06]} Nc6 {[%clk 01:31:14]}
{[%emt 00:00:04]} 3. Nc3 {[%clk 01:24:58]} {[%emt 00:00:10]} e5 {[%clk
01:30:16]} {[%emt 00:01:27]} 4. Bc4 {[%clk 01:25:17]} {[%emt 00:00:12]} Be7
{[%clk 01:30:38]} {[%emt 00:00:08]} 5. d3 {[%clk 01:25:42]} {[%emt 00:00:05]}
d6 {[%clk 01:30:49]} {[%emt 00:00:19]} 6. h3 {[%clk 01:26:01]} {[%emt
00:00:11]} Nf6 {[%clk 01:25:57]} {[%emt 00:05:22]} 7. Nh2 {[%emt 00:07:21]} a6
{[%clk 01:19:01]} {[%emt 00:00:23]} 8. a4 {[%clk 01:24:53]} {[%emt 00:01:50]}
Be6 {[%emt 00:04:03]} 9. Ng4 {[%clk 01:22:01]} {[%emt 00:00:50]} Nb4 {[%clk
01:12:10]} {[%emt 00:06:20]} 10. Ne3 {[%emt 00:24:51]} d5 {[%clk 00:49:20]}
{[%emt 00:03:00]} 11. exd5 {[%clk 01:17:31]} {[%emt 00:01:00]} Nfxd5 {[%clk
00:49:35]} {[%emt 00:00:15]} 12. Nexd5 {[%clk 01:14:47]} {[%emt 00:03:13]} Nxd5
{[%clk 00:49:54]} {[%emt 00:00:10]} 13. Qf3 {[%clk 01:15:06]} {[%emt 00:00:11]}
Nxc3 {[%emt 00:07:04]} 14. Bxe6 {[%clk 01:14:37]} {[%emt 00:00:09]} fxe6 {[%clk
00:44:38]} {[%emt 00:00:03]} 15. bxc3 {[%clk 01:14:54]} {[%emt 00:00:13]} Qd5
{[%clk 00:45:05]} {[%emt 00:00:04]} 16. Qg4 {[%emt 00:06:27]} O-O {[%clk
00:42:10]} {[%emt 00:01:13]} 17. c4 {[%emt 00:06:20]} h5 {[%clk 00:34:03]}
{[%emt 00:03:52]} 18. cxd5 {[%clk 00:55:27]} {[%emt 00:15:07]} hxg4 {[%clk
00:34:31]} {[%emt 00:00:02]} 19. dxe6 {[%emt 00:02:03]} gxh3 {[%clk 00:29:52]}
{[%emt 00:03:15]} 20. Rxh3 {[%clk 00:55:37]} {[%emt 00:00:41]} Rf6 {[%emt
00:00:22]} 21. Rb1 {[%clk 00:55:51]} {[%emt 00:00:04]} Rb8 {[%emt 00:05:02]} 22.
Re3 {[%clk 00:52:14]} {[%emt 00:00:58]} Rxe6 {[%clk 00:28:43]} {[%emt
00:00:36]} 23. Re4 {[%clk 00:52:38]} {[%emt 00:00:05]} b5 {[%clk 00:27:30]}
{[%emt 00:01:43]} 24. Ke2 {[%clk 00:52:19]} {[%emt 00:00:48]} Kf7 {[%emt
00:06:52]} 25. Be3 {[%emt 00:02:10]} Rbb6 {[%emt 00:01:53]} 26. Kd2 {[%emt
00:00:20]} Bd6 {[%emt 00:03:32]} 27. axb5 {[%clk 00:47:06]} {[%emt 00:00:04]}
axb5 {[%emt 00:03:37]} 28. Rc4 {[%emt 00:00:28]} Rb8 {[%clk 00:20:19]} {[%emt
00:00:46]} 29. Rc3 {[%emt 00:05:10]} e4 {[%clk 00:13:34]} {[%emt 00:02:38]} 30.
Bxc5 {[%clk 00:42:31]} {[%emt 00:02:15]} b4 {[%clk 00:12:50]} {[%emt 00:01:13]}
31. Rc4 {[%clk 00:42:33]} {[%emt 00:00:27]} Bxc5 {[%clk 00:12:10]} {[%emt
00:01:11]} 32. Rxc5 {[%clk 00:42:56]} {[%emt 00:00:07]} Rf6 {[%emt 00:05:16]}
33. Rc7+ {[%emt 00:01:32]} Kg8 {[%emt 00:06:17]} 34. Ke2 {[%clk 00:37:12]}
{[%emt 00:00:43]} exd3+ {[%clk 00:04:52]} {[%emt 00:01:45]} 35. cxd3 {[%clk
00:37:26]} {[%emt 00:00:15]} Re8+ {[%emt 00:00:57]} 36. Kf1 {[%clk 00:37:23]}
{[%emt 00:00:09]} Rh6 {[%clk 00:05:01]} {[%emt 00:00:19]} 37. Kg1 {[%clk
00:37:47]} {[%emt 00:00:05]} Re2 {[%clk 00:04:44]} {[%emt 00:00:47]} 38. Rb7
{[%emt 00:02:34]} Rd2 {[%clk 00:03:26]} {[%emt 00:00:24]} 39. R7xb4 {[%clk
00:37:16]} {[%emt 00:00:23]} Rxd3 {[%clk 00:03:53]} {[%emt 00:00:03]} 40. Rf4
{[%clk 01:07:32]} {[%emt 00:00:14]} Rf6 {[%clk 00:32:41]} {[%emt 00:01:41]} 41.
Rxf6 {[%clk 01:07:29]} {[%emt 00:00:34]} gxf6 {[%clk 00:30:54]} {[%emt
00:02:18]} 42. Rb7 {[%clk 01:07:28]} {[%emt 00:00:31]} Rd2 {[%clk 00:28:04]}
{[%emt 00:03:20]} 43. f3 {[%clk 01:07:03]} {[%emt 00:00:54]} Rd5 {[%clk
00:27:00]} {[%emt 00:01:33]} 44. Kh2 {[%clk 01:06:29]} {[%emt 00:01:05]} Rh5+
{[%clk 00:24:42]} {[%emt 00:02:49]} 45. Kg3 {[%clk 01:06:22]} {[%emt 00:00:37]}
Rg5+ {[%clk 00:25:10]} {[%emt 00:00:02]} 46. Kf2 {[%clk 01:06:46]} {[%emt
00:00:06]} Ra5 {[%clk 00:24:09]} {[%emt 00:01:32]} 47. Ke3 {[%emt 00:01:57]}
Rg5 {[%emt 00:01:35]} 48. Kf2 {[%emt 00:00:16]} Ra5 {[%clk 00:23:20]} {[%emt
00:00:04]} 49. g3 {[%clk 01:06:09]} {[%emt 00:00:05]} Ra2+ {[%clk 00:22:33]}
{[%emt 00:01:17]} 50. Ke3 {[%clk 01:06:32]} {[%emt 00:00:06]} Ra4 {[%clk
00:22:27]} {[%emt 00:00:36]} 51. Rc7 {[%clk 01:06:39]} {[%emt 00:00:24]} Kf8
{[%emt 00:00:39]} 52. f4 {[%clk 01:06:32]} {[%emt 00:00:32]} Ra3+ {[%clk
00:22:14]} {[%emt 00:00:39]} 53. Kf2 {[%clk 01:06:46]} {[%emt 00:00:16]} Kg8
{[%clk 00:21:57]} {[%emt 00:00:47]} 54. Kg2 {[%clk 01:07:05]} {[%emt 00:00:10]}
Ra2+ {[%clk 00:21:34]} {[%emt 00:00:54]} 55. Kh3 {[%clk 01:07:27]} {[%emt
00:00:08]} Ra5 {[%clk 00:21:43]} {[%emt 00:00:21]} 56. Kh4 {[%clk 01:07:28]}
{[%emt 00:00:29]} Rb5 {[%emt 00:03:58]} 57. g4 {[%clk 01:04:55]} {[%emt
00:00:53]} Ra5 {[%emt 00:01:28]} 58. f5 {[%clk 01:04:26]} {[%emt 00:00:07]} Ra1
{[%clk 00:20:20]} {[%emt 00:00:30]} 59. Kh5 {[%clk 01:04:17]} {[%emt 00:00:38]}
Rg1 {[%clk 00:20:47]} {[%emt 00:00:03]} 60. Ra7 {[%clk 01:04:09]} {[%emt
00:00:38]} Rg2 {[%clk 00:21:08]} {[%emt 00:00:09]} 61. Kg6 {[%clk 01:03:58]}
{[%emt 00:00:41]} Rxg4+ {[%clk 00:21:32]} {[%emt 00:00:07]} 62. Kxf6 {[%clk
01:04:23]} {[%emt 00:00:05]} Rf4 {[%clk 00:21:18]} {[%emt 00:00:44]} 63. Ra8+
{[%clk 01:04:04]} {[%emt 00:00:50]} Kh7 {[%clk 00:21:46]} {[%emt 00:00:02]} 64.
Rf8 {[%clk 01:03:32]} {[%emt 00:01:00]} Ra4 {[%clk 00:22:07]} {[%emt 00:00:10]}
65. Re8 {[%clk 01:02:41]} {[%emt 00:00:33]} Rf4 {[%clk 00:21:37]} 66. Re5
{[%emt 00:05:25]} Kg8 {[%clk 00:21:29]} {[%emt 00:00:14]} 67. Rd5 {[%emt
00:00:39]} Rf1 {[%clk 00:21:13]} {[%emt 00:00:34]} 68. Rd8+ {[%clk 00:59:17]}
{[%emt 00:01:15]} Kh7 {[%clk 00:19:38]} {[%emt 00:02:05]} 69. Rd7+ {[%clk
00:59:06]} {[%emt 00:00:42]} Kg8 {[%clk 00:19:45]} {[%emt 00:00:22]} 70. Rg7+
{[%clk 00:59:29]} {[%emt 00:00:07]} Kf8 {[%clk 00:19:34]} {[%emt 00:00:41]} 71.
Ra7 {[%clk 00:59:25]} {[%emt 00:00:34]} Kg8 {[%clk 00:19:59]} {[%emt 00:00:05]}
72. Ra8+ {[%clk 00:58:46]} {[%emt 00:01:09]} Kh7 {[%clk 00:20:26]} {[%emt
00:00:02]} 73. Re8 {[%clk 00:58:23]} {[%emt 00:00:53]} Rf2 {[%emt 00:00:59]} 74.
Rf8 {[%clk 00:57:42]} {[%emt 00:00:21]} Ra2 {[%clk 00:21:11]} {[%emt 00:00:06]}
75. Rf7+ {[%clk 00:57:56]} {[%emt 00:00:16]} Kg8 {[%clk 00:21:22]} {[%emt
00:00:18]} 76. Re7 {[%emt 00:00:29]} Rf2 {[%emt 00:01:38]} 77. Re8+ {[%clk
00:52:23]} {[%emt 00:04:59]} Kh7 {[%clk 00:21:48]} {[%emt 00:00:02]} 78. Ke6
{[%clk 00:52:46]} {[%emt 00:00:07]} Kg7 {[%clk 00:21:57]} {[%emt 00:00:21]} 79.
Re7+ {[%clk 00:53:11]} {[%emt 00:00:05]} Kg8 {[%clk 00:21:59]} {[%emt
00:00:27]} 80. Rb7 {[%clk 00:51:02]} {[%emt 00:02:40]} Re2+ {[%clk 00:22:14]}
{[%emt 00:00:14]} 81. Kf6 {[%clk 00:51:17]} {[%emt 00:00:16]} Rf2 {[%clk
00:22:42]} {[%emt 00:00:02]} 82. Rb8+ {[%clk 00:44:51]} {[%emt 00:06:55]} Kh7
{[%clk 00:23:05]} {[%emt 00:00:07]} 83. Rb7+ {[%clk 00:45:17]} {[%emt
00:00:04]} Kg8 {[%clk 00:23:31]} {[%emt 00:00:04]} 1/2-1/2

[Event "elllobregat Open Chess TnmT- 2nd Edition 2021"]
[Site "Castelldefels, Spain"]
[Date "2021.12.07"]
[Round "8.3"]
[White "Meshkovs, Nikita"]
[Black "Erigaisi, Arjun"]
[Result "1/2-1/2"]
[TimeControl "90min/40moves + 30min/end + 30sec increment per move starting from move 1"]
[WhiteTitle "GM"]
[BlackTitle "GM"]
[WhiteFideId "11602740"]
[BlackFideId "35009192"]
[WhiteElo "2557"]
[BlackElo "2627"]

1. c4 {[%clk 01:28:29]} {[%emt 00:02:14]} e6 {[%clk 01:30:47]} {[%emt
00:00:13]} 2. g3 {[%clk 01:28:42]} {[%emt 00:00:16]} d5 {[%clk 01:31:10]}
{[%emt 00:00:07]} 3. Bg2 {[%clk 01:29:08]} {[%emt 00:00:04]} Nf6 {[%clk
01:31:17]} {[%emt 00:00:23]} 4. Nf3 {[%clk 01:29:29]} {[%emt 00:00:09]} dxc4
{[%clk 01:31:40]} {[%emt 00:00:08]} 5. Qa4+ {[%clk 01:29:56]} {[%emt 00:00:03]}
Nbd7 {[%clk 01:32:02]} {[%emt 00:00:08]} 6. Qxc4 {[%clk 01:30:16]} {[%emt
00:00:11]} c5 {[%clk 01:32:27]} {[%emt 00:00:05]} 7. d3 {[%clk 01:29:57]}
{[%emt 00:00:49]} Bd6 {[%clk 01:31:13]} {[%emt 00:01:44]} 8. a4 {[%clk
01:29:16]} {[%emt 00:01:12]} b6 {[%emt 00:13:52]} 9. Nfd2 {[%clk 01:19:55]}
{[%emt 00:00:35]} Rb8 {[%clk 01:26:26]} {[%emt 00:01:10]} 10. Nc3 {[%clk
01:20:11]} {[%emt 00:00:13]} Ne5 {[%clk 01:07:34]} {[%emt 00:19:22]} 11. Qb3
{[%clk 01:19:23]} {[%emt 00:01:19]} Qd7 {[%emt 00:02:59]} 12. Nde4 {[%clk
01:13:09]} {[%emt 00:04:00]} Nxe4 {[%clk 01:08:01]} {[%emt 00:00:17]} 13. Nxe4
{[%clk 01:13:37]} {[%emt 00:00:02]} Bc7 {[%emt 00:07:26]} 14. Qb5 {[%emt
00:01:25]} Bb7 {[%clk 00:59:10]} {[%emt 00:08:36]} 15. Qxd7+ {[%clk 01:02:58]}
{[%emt 00:04:03]} Kxd7 {[%emt 00:00:19]} 16. O-O {[%emt 00:00:57]} Bxe4 {[%clk
00:58:51]} {[%emt 00:00:24]} 17. Bxe4 {[%clk 01:03:08]} {[%emt 00:00:29]} Nc6
{[%clk 00:59:15]} {[%emt 00:00:05]} 18. Bd2 {[%emt 00:06:32]} Nd4 {[%clk
00:56:34]} {[%emt 00:01:16]} 19. Rae1 {[%clk 00:59:30]} {[%emt 00:00:02]} Be5
{[%clk 00:55:55]} {[%emt 00:01:09]} 20. Bc3 {[%clk 00:58:00]} {[%emt 00:02:35]}
Bf6 {[%clk 00:54:57]} {[%emt 00:02:44]} 21. e3 {[%clk 00:46:06]} {[%emt
00:10:34]} Nc6 {[%emt 00:05:09]} 22. Bxf6 {[%clk 00:43:44]} {[%emt 00:02:45]}
gxf6 {[%clk 00:50:41]} {[%emt 00:00:13]} 23. Rc1 {[%clk 00:44:05]} {[%emt
00:00:09]} Rbc8 {[%clk 00:43:58]} {[%emt 00:07:13]} 24. Rfd1 {[%emt 00:02:45]}
f5 {[%emt 00:01:11]} 25. Bf3 {[%clk 00:43:46]} {[%emt 00:00:26]} Rhd8 {[%emt
00:16:20]} 26. Kf1 {[%emt 00:07:24]} Ne5 {[%emt 00:02:15]} 27. Bb7 {[%clk
00:26:51]} {[%emt 00:02:12]} Rc7 {[%clk 00:32:16]} {[%emt 00:00:24]} 28. Ba6
{[%emt 00:02:11]} Nc6 {[%clk 00:29:19]} {[%emt 00:01:29]} 29. Bb5 {[%clk
00:24:02]} {[%emt 00:03:36]} Ke7 {[%emt 00:00:35]} 30. Bxc6 {[%clk 00:24:09]}
{[%emt 00:00:06]} Rxc6 {[%emt 00:05:35]} 31. Rc4 {[%clk 00:17:13]} {[%emt
00:01:57]} Rcd6 {[%clk 00:28:33]} {[%emt 00:01:51]} 32. Ke2 {[%emt 00:00:33]}
e5 {[%clk 00:26:22]} {[%emt 00:02:18]} 33. Rd2 {[%clk 00:15:14]} {[%emt
00:02:49]} Rh6 {[%emt 00:02:24]} 34. b4 {[%clk 00:14:33]} {[%emt 00:00:08]}
cxb4 {[%clk 00:25:08]} {[%emt 00:00:52]} 35. Rxb4 {[%clk 00:14:45]} {[%emt
00:00:18]} Rxh2 {[%clk 00:25:06]} {[%emt 00:00:31]} 36. Rb5 {[%emt 00:00:11]}
f6 {[%clk 00:22:59]} {[%emt 00:02:28]} 37. a5 {[%clk 00:12:27]} {[%emt
00:03:17]} Rd6 {[%clk 00:23:16]} {[%emt 00:00:13]} 38. axb6 {[%clk 00:12:35]}
{[%emt 00:00:22]} axb6 {[%clk 00:23:41]} {[%emt 00:00:04]} 39. Rdb2 {[%clk
00:12:54]} {[%emt 00:00:12]} h5 {[%clk 00:23:39]} {[%emt 00:00:32]} 40. Rxb6
{[%clk 00:43:17]} {[%emt 00:00:08]} Rxb6 {[%clk 00:54:04]} {[%emt 00:00:04]} 41.
Rxb6 {[%clk 00:43:41]} {[%emt 00:00:06]} h4 {[%clk 00:54:30]} {[%emt 00:00:03]}
42. gxh4 {[%clk 00:44:05]} {[%emt 00:00:06]} Rxh4 {[%clk 00:54:57]} {[%emt
00:00:03]} 1/2-1/2

[Event "elllobregat Open Chess TnmT- 2nd Edition 2021"]
[Site "Castelldefels, Spain"]
[Date "2021.12.07"]
[Round "8.4"]
[White "Muradli, Mahammad"]
[Black "Puranik, Abhimanyu"]
[Result "1/2-1/2"]
[TimeControl "90min/40moves + 30min/end + 30sec increment per move starting from move 1"]
[WhiteTitle "IM"]
[BlackTitle "GM"]
[WhiteFideId "13409301"]
[BlackFideId "5061245"]
[WhiteElo "2501"]
[BlackElo "2604"]

1. d4 {[%clk 01:20:45]} {[%emt 00:10:14]} Nf6 {[%clk 01:30:33]} {[%emt
00:00:27]} 2. c4 {[%clk 01:21:09]} {[%emt 00:00:07]} e6 {[%clk 01:30:23]}
{[%emt 00:00:40]} 3. Nf3 {[%clk 01:19:36]} {[%emt 00:02:02]} d5 {[%clk
01:29:59]} {[%emt 00:00:55]} 4. Bg5 {[%clk 01:19:01]} {[%emt 00:01:05]} h6
{[%clk 01:24:39]} {[%emt 00:05:50]} 5. Bh4 {[%clk 01:06:39]} {[%emt 00:12:52]}
Bb4+ {[%clk 01:21:10]} {[%emt 00:03:59]} 6. Nc3 {[%clk 01:00:05]} {[%emt
00:07:04]} dxc4 {[%clk 01:12:44]} {[%emt 00:08:56]} 7. Qa4+ {[%clk 00:58:34]}
{[%emt 00:02:01]} Nc6 {[%clk 01:09:40]} {[%emt 00:03:34]} 8. e3 {[%clk
00:58:59]} {[%emt 00:00:05]} Bd7 {[%clk 01:01:19]} {[%emt 00:08:51]} 9. Qc2
{[%clk 00:57:45]} {[%emt 00:01:44]} b5 {[%clk 00:59:51]} {[%emt 00:01:58]} 10.
a4 {[%clk 00:53:26]} {[%emt 00:04:48]} a6 {[%clk 00:58:58]} {[%emt 00:01:24]}
11. Bxf6 {[%clk 00:53:46]} {[%emt 00:00:10]} gxf6 {[%clk 00:59:21]} {[%emt
00:00:06]} 12. g3 {[%clk 00:53:49]} {[%emt 00:00:27]} Be7 {[%clk 00:57:49]}
{[%emt 00:02:01]} 13. Be2 {[%clk 00:42:56]} {[%emt 00:11:24]} Nb4 {[%clk
00:52:18]} {[%emt 00:06:01]} 14. Qd2 {[%clk 00:42:21]} {[%emt 00:01:05]} c5
{[%clk 00:49:53]} {[%emt 00:02:55]} 15. axb5 {[%clk 00:35:38]} {[%emt
00:07:13]} axb5 {[%clk 00:49:28]} {[%emt 00:00:55]} 16. O-O {[%clk 00:35:55]}
{[%emt 00:00:13]} Bc6 {[%clk 00:45:16]} {[%emt 00:04:41]} 17. dxc5 {[%clk
00:30:26]} {[%emt 00:06:01]} Bxc5 {[%clk 00:34:12]} {[%emt 00:11:33]} 18. Rxa8
{[%clk 00:30:50]} {[%emt 00:00:07]} Qxa8 {[%clk 00:34:36]} {[%emt 00:00:05]} 19.
Nd4 {[%clk 00:31:15]} {[%emt 00:00:05]} Qd8 {[%clk 00:34:36]} {[%emt 00:00:30]}
20. Rd1 {[%clk 00:27:54]} {[%emt 00:03:52]} O-O {[%clk 00:27:39]} {[%emt
00:07:27]} 1/2-1/2